{"text_format":"1","workbook":"xlsx","n_sheets":4,"sheets":["INICIO","INSTRUCCIONES","PRESUPUESTO DE LA ACTIVIDAD","EJEMPLO DESGLOSE DE PARTIDAS"],"not_rendered":{"charts":0,"images":4,"macros":1,"external_links":0,"defined_names":2,"comments":1,"pivot_tables":0},"unopened":[],"bounds":{"document_bytes":16777216,"sheet_cells":100000,"rows_first":2000,"rows_last":500,"rows_between":2000,"halvings":0,"cell_chars":16384,"cell_head_chars":4096},"cells_cut":0,"cells_raw":0,"read":"whole","date_system":"1900"}

{"sheet":"INICIO","index":0,"n_rows":14,"n_cols":4,"rows_kept":14,"cut":false,"hidden":false,"merged":[[0,0,3,8],[7,3,7,4],[10,3,10,6],[13,3,13,6]]}
["PRESUPUESTO DE LA ACTIVIDAD "]
[]
[]
[]
[]
[]
[]
[null,null,null,"INSTRUCCIONES"]
[]
[]
[null,null,null,"PRESUPUESTO DE LA ACTIVIDAD"]
[]
[]
[null,null,null,"EJEMPLO DE DESGLOSE DE PARTIDAS"]

{"sheet":"INSTRUCCIONES","index":1,"n_rows":0,"n_cols":0,"rows_kept":0,"cut":false,"hidden":false,"merged":[[0,0,1048575,0]]}

{"sheet":"PRESUPUESTO DE LA ACTIVIDAD","index":2,"n_rows":86,"n_cols":14,"rows_kept":86,"cut":false,"hidden":false,"merged":[[42,4,42,5],[48,4,48,5],[53,4,53,5],[38,4,38,5],[43,4,43,5],[47,4,47,5],[40,4,40,5],[41,4,41,5],[46,4,46,5],[45,4,45,5],[49,4,49,5],[44,4,44,5],[71,4,71,5],[50,4,50,5],[69,4,69,5],[70,4,70,5],[60,4,60,5],[59,4,59,5],[54,4,54,5],[57,4,57,5],[55,4,55,5],[62,4,62,5],[61,4,61,5],[56,4,56,5],[63,4,63,5],[58,4,58,5],[52,4,52,5],[51,4,51,5],[34,4,34,5],[39,4,39,5],[32,4,32,5],[36,4,36,5],[31,4,31,5],[35,4,35,5],[33,4,33,5],[37,4,37,5],[11,4,11,7],[17,4,17,5],[22,4,22,5],[21,4,21,5],[23,4,23,5],[12,4,12,5],[20,4,20,5],[18,4,18,5],[19,4,19,5],[15,4,15,5],[13,4,13,5],[14,4,14,5],[16,4,16,5],[0,8,1,8],[2,8,3,8],[9,5,9,7],[0,5,3,7],[8,5,8,7],[87,4,87,10],[73,4,73,5],[65,4,65,5],[67,4,67,5],[64,4,64,5],[68,4,68,5],[86,4,86,10],[75,4,75,5],[72,4,72,5],[81,4,81,5],[85,4,85,8],[83,4,83,5],[82,4,82,5],[78,4,78,5],[79,4,79,5],[80,4,80,5],[24,4,24,5],[25,4,25,5],[26,4,26,5],[30,4,30,5],[29,4,29,7],[27,4,27,5]]}
[null,null,null,null,null,"PRESUPUESTO DE LA ACTIVIDAD",null,null,"HACER CLIC PARA INSERTAR FILA: ",null,null,"LÍNEAS SUBVENCIONALES","VIAJES Y DIETAS","G. INDIRECTOS"]
[null,null,null,null,null,null,null,null,null,null,null,"1) Actividades de intervención social con personas, familias, grupos y comunidades.",0.05,0.1]
[null,null,null,null,null,null,null,null,"HACER CLIC PARA SUPRIMIR FILA:",null,null,"2) Actividades para el fortalecimiento de la acción voluntaria y la participación asociativa en la intervención social.",0.1,0.15]
[null,null,null,null,null,null,null,null,null,null,null,"3) Actividades de gestión del conocimiento para la intervención social.",0.1,0.1]
[null,null,null,null,null,"EJEMPLO DE DESGLOSE DE PARTIDAS"]
[]
[]
[]
[null,null,null,null,"ENTIDAD: "]
[null,null,null,null,"ACTIVIDAD:"]
[]
[]
["<PARTIDA>INGRESOS</PARTIDA><NoSuprimir><NoInsertar>",null,{"$f":"IF(AND(ISERROR(FIND(\"<Sub_Concepto>\",A13)),ISERROR(FIND(\"<PARTIDA>\",A13))),\"\",IFERROR(OFFSET('EJEMPLO DESGLOSE DE PARTIDAS'!$A$1,MATCH('PRESUPUESTO DE LA ACTIVIDAD'!$E13,'EJEMPLO DESGLOSE DE PARTIDAS'!D:D,0)-1,0),\"<CODIGO SUB_CONCEPTO>\" &E13 &\"</CODIGO SUB_CONCEPTO>\"))","v":"<CODIGO CONCEPTO>1</CODIGO CONCEPTO>"},null,"INGRESOS DE LA ACTIVIDAD",null,"CUANTÍA","PORCENTAJE"]
["<Fin_Sub_Sub_Conceptos><Sub_Concepto>Aportación de la entidad solicitante</Sub_Concepto><NoSuprimir><NoInsertar>",null,{"$f":"IF(AND(ISERROR(FIND(\"<Sub_Concepto>\",A14)),ISERROR(FIND(\"<PARTIDA>\",A14))),\"\",IFERROR(OFFSET('EJEMPLO DESGLOSE DE PARTIDAS'!$A$1,MATCH('PRESUPUESTO DE LA ACTIVIDAD'!$E14,'EJEMPLO DESGLOSE DE PARTIDAS'!D:D,0)-1,0),\"<CODIGO SUB_CONCEPTO>\" &E14 &\"</CODIGO SUB_CONCEPTO>\"))","v":"<CODIGO SUB_CONCEPTO>1</CODIGO SUB_CONCEPTO>"},null,"Aportación de la entidad solicitante",null,{"$f":"SUM(G15:G15)","v":0},{"$f":"IF(G$28,G14/G$28,0)","v":0}]
["<Sub_Sub_Concepto><NoSuprimir><NoInsertar>","<Sub_Concepto>Aportación de la entidad solicitante</Sub_Concepto>",{"$f":"IF(AND(ISERROR(FIND(\"<Sub_Concepto>\",A15)),ISERROR(FIND(\"<PARTIDA>\",A15))),\"\",IFERROR(OFFSET('EJEMPLO DESGLOSE DE PARTIDAS'!$A$1,MATCH('PRESUPUESTO DE LA ACTIVIDAD'!$E15,'EJEMPLO DESGLOSE DE PARTIDAS'!D:D,0)-1,0),\"<CODIGO SUB_CONCEPTO>\" &E15 &\"</CODIGO SUB_CONCEPTO>\"))","v":""},null,"Aportación de la entidad solicitante",null,null,0]
["<Fin_Sub_Sub_Conceptos><Sub_Concepto>Subvenciones</Sub_Concepto><NoSuprimir><NoInsertar>",null,{"$f":"IF(AND(ISERROR(FIND(\"<Sub_Concepto>\",A16)),ISERROR(FIND(\"<PARTIDA>\",A16))),\"\",IFERROR(OFFSET('EJEMPLO DESGLOSE DE PARTIDAS'!$A$1,MATCH('PRESUPUESTO DE LA ACTIVIDAD'!$E16,'EJEMPLO DESGLOSE DE PARTIDAS'!D:D,0)-1,0),\"<CODIGO SUB_CONCEPTO>\" &E16 &\"</CODIGO SUB_CONCEPTO>\"))","v":"<CODIGO SUB_CONCEPTO>3</CODIGO SUB_CONCEPTO>"},null,"Subvenciones  (detallar a continuación) NO INCLUIR LA SOLICITADA\nOtras subvenciones (incluyento aquellas que se encuentran solicitadas y pendientes de resolver)  ",null,{"$f":"SUM(G17:G19)","v":0},0]
["<Sub_Sub_Concepto><NoSuprimir>","<Sub_Concepto>Subvenciones</Sub_Concepto>",{"$f":"IF(AND(ISERROR(FIND(\"<Sub_Concepto>\",A17)),ISERROR(FIND(\"<PARTIDA>\",A17))),\"\",IFERROR(OFFSET('EJEMPLO DESGLOSE DE PARTIDAS'!$A$1,MATCH('PRESUPUESTO DE LA ACTIVIDAD'!$E17,'EJEMPLO DESGLOSE DE PARTIDAS'!D:D,0)-1,0),\"<CODIGO SUB_CONCEPTO>\" &E17 &\"</CODIGO SUB_CONCEPTO>\"))","v":""},null,null,null,null,0]
["<Sub_Sub_Concepto>","<Sub_Concepto>Subvenciones</Sub_Concepto>",{"$f":"IF(AND(ISERROR(FIND(\"<Sub_Concepto>\",A18)),ISERROR(FIND(\"<PARTIDA>\",A18))),\"\",IFERROR(OFFSET('EJEMPLO DESGLOSE DE PARTIDAS'!$A$1,MATCH('PRESUPUESTO DE LA ACTIVIDAD'!$E18,'EJEMPLO DESGLOSE DE PARTIDAS'!D:D,0)-1,0),\"<CODIGO SUB_CONCEPTO>\" &E18 &\"</CODIGO SUB_CONCEPTO>\"))","v":""},null,null,null,null,0]
["<Sub_Sub_Concepto>","<Sub_Concepto>Subvenciones</Sub_Concepto>",{"$f":"IF(AND(ISERROR(FIND(\"<Sub_Concepto>\",A19)),ISERROR(FIND(\"<PARTIDA>\",A19))),\"\",IFERROR(OFFSET('EJEMPLO DESGLOSE DE PARTIDAS'!$A$1,MATCH('PRESUPUESTO DE LA ACTIVIDAD'!$E19,'EJEMPLO DESGLOSE DE PARTIDAS'!D:D,0)-1,0),\"<CODIGO SUB_CONCEPTO>\" &E19 &\"</CODIGO SUB_CONCEPTO>\"))","v":""},null,null,null,null,0]
["<Fin_Sub_Sub_Conceptos><Sub_Concepto>Otros Ingresos</Sub_Concepto><NoSuprimir><NoInsertar>",null,{"$f":"IF(AND(ISERROR(FIND(\"<Sub_Concepto>\",A20)),ISERROR(FIND(\"<PARTIDA>\",A20))),\"\",IFERROR(OFFSET('EJEMPLO DESGLOSE DE PARTIDAS'!$A$1,MATCH('PRESUPUESTO DE LA ACTIVIDAD'!$E20,'EJEMPLO DESGLOSE DE PARTIDAS'!D:D,0)-1,0),\"<CODIGO SUB_CONCEPTO>\" &E20 &\"</CODIGO SUB_CONCEPTO>\"))","v":"<CODIGO SUB_CONCEPTO>8</CODIGO SUB_CONCEPTO>"},null,"Otros ingresos (detallar a continuación)","Otros ingresos (detallar a continuación)",{"$f":"SUM(G21:G23)","v":0},0]
["<Sub_Sub_Concepto><NoSuprimir>","<Sub_Concepto>Otros Ingresos</Sub_Concepto>",{"$f":"IF(AND(ISERROR(FIND(\"<Sub_Concepto>\",A21)),ISERROR(FIND(\"<PARTIDA>\",A21))),\"\",IFERROR(OFFSET('EJEMPLO DESGLOSE DE PARTIDAS'!$A$1,MATCH('PRESUPUESTO DE LA ACTIVIDAD'!$E21,'EJEMPLO DESGLOSE DE PARTIDAS'!D:D,0)-1,0),\"<CODIGO SUB_CONCEPTO>\" &E21 &\"</CODIGO SUB_CONCEPTO>\"))","v":""},null,null,null,null,0]
["<Sub_Sub_Concepto>","<Sub_Concepto>Otros Ingresos</Sub_Concepto>",{"$f":"IF(AND(ISERROR(FIND(\"<Sub_Concepto>\",A22)),ISERROR(FIND(\"<PARTIDA>\",A22))),\"\",IFERROR(OFFSET('EJEMPLO DESGLOSE DE PARTIDAS'!$A$1,MATCH('PRESUPUESTO DE LA ACTIVIDAD'!$E22,'EJEMPLO DESGLOSE DE PARTIDAS'!D:D,0)-1,0),\"<CODIGO SUB_CONCEPTO>\" &E22 &\"</CODIGO SUB_CONCEPTO>\"))","v":""},null,null,null,null,0]
["<Sub_Sub_Concepto>","<Sub_Concepto>Otros Ingresos</Sub_Concepto>",{"$f":"IF(AND(ISERROR(FIND(\"<Sub_Concepto>\",A23)),ISERROR(FIND(\"<PARTIDA>\",A23))),\"\",IFERROR(OFFSET('EJEMPLO DESGLOSE DE PARTIDAS'!$A$1,MATCH('PRESUPUESTO DE LA ACTIVIDAD'!$E23,'EJEMPLO DESGLOSE DE PARTIDAS'!D:D,0)-1,0),\"<CODIGO SUB_CONCEPTO>\" &E23 &\"</CODIGO SUB_CONCEPTO>\"))","v":""},null,null,null,null,0]
[{"$f":"\"<Fin_Sub_Sub_Conceptos><Sub_Concepto>\" &E24 &\"</Sub_Concepto><NoSuprimir>\"","v":"<Fin_Sub_Sub_Conceptos><Sub_Concepto>otra nueva </Sub_Concepto><NoSuprimir>"},null,{"$f":"IF(AND(ISERROR(FIND(\"<Sub_Concepto>\",A24)),ISERROR(FIND(\"<PARTIDA>\",A24))),\"\",IFERROR(OFFSET('EJEMPLO DESGLOSE DE PARTIDAS'!$A$1,MATCH('PRESUPUESTO DE LA ACTIVIDAD'!$E24,'EJEMPLO DESGLOSE DE PARTIDAS'!D:D,0)-1,0),\"<CODIGO SUB_CONCEPTO>\" &E24 &\"</CODIGO SUB_CONCEPTO>\"))","v":"<CODIGO SUB_CONCEPTO>otra nueva </CODIGO SUB_CONCEPTO>"},null,"otra nueva ",null,{"$f":"SUM(G25:G27)","v":0},0]
["<Sub_Sub_Concepto><NoSuprimir>",{"$f":"\"<Sub_Concepto>\" &E24 &\"</Sub_Concepto>\"","v":"<Sub_Concepto>otra nueva </Sub_Concepto>"},{"$f":"IF(AND(ISERROR(FIND(\"<Sub_Concepto>\",A25)),ISERROR(FIND(\"<PARTIDA>\",A25))),\"\",IFERROR(OFFSET('EJEMPLO DESGLOSE DE PARTIDAS'!$A$1,MATCH('PRESUPUESTO DE LA ACTIVIDAD'!$E25,'EJEMPLO DESGLOSE DE PARTIDAS'!D:D,0)-1,0),\"<CODIGO SUB_CONCEPTO>\" &E25 &\"</CODIGO SUB_CONCEPTO>\"))","v":""},null,null,null,null,0]
["<Sub_Sub_Concepto>",{"$f":"\"<Sub_Concepto>\" &E24 &\"</Sub_Concepto>\"","v":"<Sub_Concepto>otra nueva </Sub_Concepto>"},{"$f":"IF(AND(ISERROR(FIND(\"<Sub_Concepto>\",A26)),ISERROR(FIND(\"<PARTIDA>\",A26))),\"\",IFERROR(OFFSET('EJEMPLO DESGLOSE DE PARTIDAS'!$A$1,MATCH('PRESUPUESTO DE LA ACTIVIDAD'!$E26,'EJEMPLO DESGLOSE DE PARTIDAS'!D:D,0)-1,0),\"<CODIGO SUB_CONCEPTO>\" &E26 &\"</CODIGO SUB_CONCEPTO>\"))","v":""},null,null,null,null,0]
["<Sub_Sub_Concepto>",{"$f":"\"<Sub_Concepto>\" &E24 &\"</Sub_Concepto>\"","v":"<Sub_Concepto>otra nueva </Sub_Concepto>"},{"$f":"IF(AND(ISERROR(FIND(\"<Sub_Concepto>\",A27)),ISERROR(FIND(\"<PARTIDA>\",A27))),\"\",IFERROR(OFFSET('EJEMPLO DESGLOSE DE PARTIDAS'!$A$1,MATCH('PRESUPUESTO DE LA ACTIVIDAD'!$E27,'EJEMPLO DESGLOSE DE PARTIDAS'!D:D,0)-1,0),\"<CODIGO SUB_CONCEPTO>\" &E27 &\"</CODIGO SUB_CONCEPTO>\"))","v":""},null,null,null,null,0]
["<Fin_Sub_Sub_Conceptos>",null,{"$f":"IF(AND(ISERROR(FIND(\"<Sub_Concepto>\",A28)),ISERROR(FIND(\"<PARTIDA>\",A28))),\"\",IFERROR(OFFSET('EJEMPLO DESGLOSE DE PARTIDAS'!$A$1,MATCH('PRESUPUESTO DE LA ACTIVIDAD'!$E28,'EJEMPLO DESGLOSE DE PARTIDAS'!D:D,0)-1,0),\"<CODIGO SUB_CONCEPTO>\" &E28 &\"</CODIGO SUB_CONCEPTO>\"))","v":""},null,"TOTAL INGRESOS",null,{"$f":"SUMIF(A13:A28,\"*<Sub_Concepto>*\",G13:G28)","v":0},1]
[null,null,{"$f":"IF(AND(ISERROR(FIND(\"<Sub_Concepto>\",A29)),ISERROR(FIND(\"<PARTIDA>\",A29))),\"\",IFERROR(OFFSET('EJEMPLO DESGLOSE DE PARTIDAS'!$A$1,MATCH('PRESUPUESTO DE LA ACTIVIDAD'!$E29,'EJEMPLO DESGLOSE DE PARTIDAS'!D:D,0)-1,0),\"<CODIGO SUB_CONCEPTO>\" &E29 &\"</CODIGO SUB_CONCEPTO>\"))","v":""}]
[null,"<CODIGO SUB_CONCEPTO>Codigo_Sub_Concepto3</CODIGO SUB_CONCEPTO>",{"$f":"IF(AND(ISERROR(FIND(\"<Sub_Concepto>\",A30)),ISERROR(FIND(\"<PARTIDA>\",A30))),\"\",IFERROR(OFFSET('EJEMPLO DESGLOSE DE PARTIDAS'!$A$1,MATCH('PRESUPUESTO DE LA ACTIVIDAD'!$E30,'EJEMPLO DESGLOSE DE PARTIDAS'!D:D,0)-1,0),\"<CODIGO SUB_CONCEPTO>\" &E30 &\"</CODIGO SUB_CONCEPTO>\"))","v":""}]
["<PARTIDA>GASTOS DIRECTOS</PARTIDA><NoSuprimir><NoInsertar>",null,{"$f":"IF(AND(ISERROR(FIND(\"<Sub_Concepto>\",A31)),ISERROR(FIND(\"<PARTIDA>\",A31))),\"\",IFERROR(OFFSET('EJEMPLO DESGLOSE DE PARTIDAS'!$A$1,MATCH('PRESUPUESTO DE LA ACTIVIDAD'!$E31,'EJEMPLO DESGLOSE DE PARTIDAS'!D:D,0)-1,0),\"<CODIGO SUB_CONCEPTO>\" &E31 &\"</CODIGO SUB_CONCEPTO>\"))","v":"<CODIGO CONCEPTO>2</CODIGO CONCEPTO>"},null,"GASTOS DIRECTOS DE LA ACTIVIDAD",null,"CUANTÍA","PORCENTAJE"]
["<Sub_Concepto>Personal</Sub_Concepto><NoSuprimir><NoInsertar>",null,{"$f":"IF(AND(ISERROR(FIND(\"<Sub_Concepto>\",A32)),ISERROR(FIND(\"<PARTIDA>\",A32))),\"\",IFERROR(OFFSET('EJEMPLO DESGLOSE DE PARTIDAS'!$A$1,MATCH('PRESUPUESTO DE LA ACTIVIDAD'!$E32,'EJEMPLO DESGLOSE DE PARTIDAS'!D:D,0)-1,0),\"<CODIGO SUB_CONCEPTO>\" &E32 &\"</CODIGO SUB_CONCEPTO>\"))","v":"<CODIGO SUB_CONCEPTO>4</CODIGO SUB_CONCEPTO>"},null,"Personal (nóminas y gastos de seguridad social)",null,{"$f":"SUM(G33:G35)","v":0},{"$f":"IF(G$66,G32/G$66,0)","v":0}]
["<Sub_Sub_Concepto><NoSuprimir>","<Sub_Concepto>Personal</Sub_Concepto>",{"$f":"IF(AND(ISERROR(FIND(\"<Sub_Concepto>\",A33)),ISERROR(FIND(\"<PARTIDA>\",A33))),\"\",IFERROR(OFFSET('EJEMPLO DESGLOSE DE PARTIDAS'!$A$1,MATCH('PRESUPUESTO DE LA ACTIVIDAD'!$E33,'EJEMPLO DESGLOSE DE PARTIDAS'!D:D,0)-1,0),\"<CODIGO SUB_CONCEPTO>\" &E33 &\"</CODIGO SUB_CONCEPTO>\"))","v":""},null,null,null,null,0]
["<Sub_Sub_Concepto>","<Sub_Concepto>Personal</Sub_Concepto>",{"$f":"IF(AND(ISERROR(FIND(\"<Sub_Concepto>\",A34)),ISERROR(FIND(\"<PARTIDA>\",A34))),\"\",IFERROR(OFFSET('EJEMPLO DESGLOSE DE PARTIDAS'!$A$1,MATCH('PRESUPUESTO DE LA ACTIVIDAD'!$E34,'EJEMPLO DESGLOSE DE PARTIDAS'!D:D,0)-1,0),\"<CODIGO SUB_CONCEPTO>\" &E34 &\"</CODIGO SUB_CONCEPTO>\"))","v":""},null,null,null,null,0]
["<Sub_Sub_Concepto>","<Sub_Concepto>Personal</Sub_Concepto>",{"$f":"IF(AND(ISERROR(FIND(\"<Sub_Concepto>\",A35)),ISERROR(FIND(\"<PARTIDA>\",A35))),\"\",IFERROR(OFFSET('EJEMPLO DESGLOSE DE PARTIDAS'!$A$1,MATCH('PRESUPUESTO DE LA ACTIVIDAD'!$E35,'EJEMPLO DESGLOSE DE PARTIDAS'!D:D,0)-1,0),\"<CODIGO SUB_CONCEPTO>\" &E35 &\"</CODIGO SUB_CONCEPTO>\"))","v":""},null,null,null,null,0]
["<Fin_Sub_Sub_Conceptos><Sub_Concepto>Servicios de profesionales independientes</Sub_Concepto><NoSuprimir><NoInsertar>",null,{"$f":"IF(AND(ISERROR(FIND(\"<Sub_Concepto>\",A36)),ISERROR(FIND(\"<PARTIDA>\",A36))),\"\",IFERROR(OFFSET('EJEMPLO DESGLOSE DE PARTIDAS'!$A$1,MATCH('PRESUPUESTO DE LA ACTIVIDAD'!$E36,'EJEMPLO DESGLOSE DE PARTIDAS'!D:D,0)-1,0),\"<CODIGO SUB_CONCEPTO>\" &E36 &\"</CODIGO SUB_CONCEPTO>\"))","v":"<CODIGO SUB_CONCEPTO>2</CODIGO SUB_CONCEPTO>"},null,"Servicios de profesionales independientes",null,{"$f":"SUM(G37:G40)","v":0},0]
["<Sub_Sub_Concepto><NoSuprimir>","<Sub_Concepto>Servicios de profesionales independientes</Sub_Concepto>",{"$f":"IF(AND(ISERROR(FIND(\"<Sub_Concepto>\",A37)),ISERROR(FIND(\"<PARTIDA>\",A37))),\"\",IFERROR(OFFSET('EJEMPLO DESGLOSE DE PARTIDAS'!$A$1,MATCH('PRESUPUESTO DE LA ACTIVIDAD'!$E37,'EJEMPLO DESGLOSE DE PARTIDAS'!D:D,0)-1,0),\"<CODIGO SUB_CONCEPTO>\" &E37 &\"</CODIGO SUB_CONCEPTO>\"))","v":""},null,null,null,null,0]
["<Sub_Sub_Concepto>","<Sub_Concepto>Servicios de profesionales independientes</Sub_Concepto>",{"$f":"IF(AND(ISERROR(FIND(\"<Sub_Concepto>\",A38)),ISERROR(FIND(\"<PARTIDA>\",A38))),\"\",IFERROR(OFFSET('EJEMPLO DESGLOSE DE PARTIDAS'!$A$1,MATCH('PRESUPUESTO DE LA ACTIVIDAD'!$E38,'EJEMPLO DESGLOSE DE PARTIDAS'!D:D,0)-1,0),\"<CODIGO SUB_CONCEPTO>\" &E38 &\"</CODIGO SUB_CONCEPTO>\"))","v":""},null,null,null,null,{"$f":"IF(G$66,G38/G$66,0)","v":0}]
["<Sub_Sub_Concepto>","<Sub_Concepto>Servicios de profesionales independientes</Sub_Concepto>",{"$f":"IF(AND(ISERROR(FIND(\"<Sub_Concepto>\",A39)),ISERROR(FIND(\"<PARTIDA>\",A39))),\"\",IFERROR(OFFSET('EJEMPLO DESGLOSE DE PARTIDAS'!$A$1,MATCH('PRESUPUESTO DE LA ACTIVIDAD'!$E39,'EJEMPLO DESGLOSE DE PARTIDAS'!D:D,0)-1,0),\"<CODIGO SUB_CONCEPTO>\" &E39 &\"</CODIGO SUB_CONCEPTO>\"))","v":""},null,null,null,null,0]
["<Sub_Sub_Concepto>","<Sub_Concepto>Servicios de profesionales independientes</Sub_Concepto>",{"$f":"IF(AND(ISERROR(FIND(\"<Sub_Concepto>\",A40)),ISERROR(FIND(\"<PARTIDA>\",A40))),\"\",IFERROR(OFFSET('EJEMPLO DESGLOSE DE PARTIDAS'!$A$1,MATCH('PRESUPUESTO DE LA ACTIVIDAD'!$E40,'EJEMPLO DESGLOSE DE PARTIDAS'!D:D,0)-1,0),\"<CODIGO SUB_CONCEPTO>\" &E40 &\"</CODIGO SUB_CONCEPTO>\"))","v":""},null,null,null,null,{"$f":"IF(G$66,G40/G$66,0)","v":0}]
["<Fin_Sub_Sub_Conceptos><Sub_Concepto>Materiales</Sub_Concepto><NoSuprimir><NoInsertar>",null,{"$f":"IF(AND(ISERROR(FIND(\"<Sub_Concepto>\",A41)),ISERROR(FIND(\"<PARTIDA>\",A41))),\"\",IFERROR(OFFSET('EJEMPLO DESGLOSE DE PARTIDAS'!$A$1,MATCH('PRESUPUESTO DE LA ACTIVIDAD'!$E41,'EJEMPLO DESGLOSE DE PARTIDAS'!D:D,0)-1,0),\"<CODIGO SUB_CONCEPTO>\" &E41 &\"</CODIGO SUB_CONCEPTO>\"))","v":"<CODIGO SUB_CONCEPTO>5</CODIGO SUB_CONCEPTO>"},null,"Materiales",null,{"$f":"SUM(G42:G45)","v":0},{"$f":"IF(G$66,G41/G$66,0)","v":0}]
["<Sub_Sub_Concepto><NoSuprimir>","<Sub_Concepto>Materiales</Sub_Concepto>",{"$f":"IF(AND(ISERROR(FIND(\"<Sub_Concepto>\",A42)),ISERROR(FIND(\"<PARTIDA>\",A42))),\"\",IFERROR(OFFSET('EJEMPLO DESGLOSE DE PARTIDAS'!$A$1,MATCH('PRESUPUESTO DE LA ACTIVIDAD'!$E42,'EJEMPLO DESGLOSE DE PARTIDAS'!D:D,0)-1,0),\"<CODIGO SUB_CONCEPTO>\" &E42 &\"</CODIGO SUB_CONCEPTO>\"))","v":""},null,null,null,null,{"$f":"IF(G$66,G42/G$66,0)","v":0}]
["<Sub_Sub_Concepto>","<Sub_Concepto>Materiales</Sub_Concepto>",{"$f":"IF(AND(ISERROR(FIND(\"<Sub_Concepto>\",A43)),ISERROR(FIND(\"<PARTIDA>\",A43))),\"\",IFERROR(OFFSET('EJEMPLO DESGLOSE DE PARTIDAS'!$A$1,MATCH('PRESUPUESTO DE LA ACTIVIDAD'!$E43,'EJEMPLO DESGLOSE DE PARTIDAS'!D:D,0)-1,0),\"<CODIGO SUB_CONCEPTO>\" &E43 &\"</CODIGO SUB_CONCEPTO>\"))","v":""},null,null,null,null,{"$f":"IF(G$66,G43/G$66,0)","v":0}]
["<Sub_Sub_Concepto>","<Sub_Concepto>Materiales</Sub_Concepto>",{"$f":"IF(AND(ISERROR(FIND(\"<Sub_Concepto>\",A44)),ISERROR(FIND(\"<PARTIDA>\",A44))),\"\",IFERROR(OFFSET('EJEMPLO DESGLOSE DE PARTIDAS'!$A$1,MATCH('PRESUPUESTO DE LA ACTIVIDAD'!$E44,'EJEMPLO DESGLOSE DE PARTIDAS'!D:D,0)-1,0),\"<CODIGO SUB_CONCEPTO>\" &E44 &\"</CODIGO SUB_CONCEPTO>\"))","v":""},null,null,null,null,0]
["<Sub_Sub_Concepto>","<Sub_Concepto>Materiales</Sub_Concepto>",{"$f":"IF(AND(ISERROR(FIND(\"<Sub_Concepto>\",A45)),ISERROR(FIND(\"<PARTIDA>\",A45))),\"\",IFERROR(OFFSET('EJEMPLO DESGLOSE DE PARTIDAS'!$A$1,MATCH('PRESUPUESTO DE LA ACTIVIDAD'!$E45,'EJEMPLO DESGLOSE DE PARTIDAS'!D:D,0)-1,0),\"<CODIGO SUB_CONCEPTO>\" &E45 &\"</CODIGO SUB_CONCEPTO>\"))","v":""},null,null,null,null,{"$f":"IF(G$66,G45/G$66,0)","v":0}]
["<Fin_Sub_Sub_Conceptos><Sub_Concepto>Alquileres y arrendamientos</Sub_Concepto><NoSuprimir><NoInsertar>",null,{"$f":"IF(AND(ISERROR(FIND(\"<Sub_Concepto>\",A46)),ISERROR(FIND(\"<PARTIDA>\",A46))),\"\",IFERROR(OFFSET('EJEMPLO DESGLOSE DE PARTIDAS'!$A$1,MATCH('PRESUPUESTO DE LA ACTIVIDAD'!$E46,'EJEMPLO DESGLOSE DE PARTIDAS'!D:D,0)-1,0),\"<CODIGO SUB_CONCEPTO>\" &E46 &\"</CODIGO SUB_CONCEPTO>\"))","v":"<CODIGO SUB_CONCEPTO>10</CODIGO SUB_CONCEPTO>"},null,"Alquileres y arrendamientos",null,{"$f":"SUM(G47:G50)","v":0},{"$f":"IF(G$66,G46/G$66,0)","v":0}]
["<Sub_Sub_Concepto><NoSuprimir>","<Sub_Concepto>Alquileres y arrendamientos</Sub_Concepto>",{"$f":"IF(AND(ISERROR(FIND(\"<Sub_Concepto>\",A47)),ISERROR(FIND(\"<PARTIDA>\",A47))),\"\",IFERROR(OFFSET('EJEMPLO DESGLOSE DE PARTIDAS'!$A$1,MATCH('PRESUPUESTO DE LA ACTIVIDAD'!$E47,'EJEMPLO DESGLOSE DE PARTIDAS'!D:D,0)-1,0),\"<CODIGO SUB_CONCEPTO>\" &E47 &\"</CODIGO SUB_CONCEPTO>\"))","v":""},null,null,null,null,{"$f":"IF(G$66,G47/G$66,0)","v":0}]
["<Sub_Sub_Concepto><NoSuprimir>","<Sub_Concepto>Alquileres y arrendamientos</Sub_Concepto>",{"$f":"IF(AND(ISERROR(FIND(\"<Sub_Concepto>\",A48)),ISERROR(FIND(\"<PARTIDA>\",A48))),\"\",IFERROR(OFFSET('EJEMPLO DESGLOSE DE PARTIDAS'!$A$1,MATCH('PRESUPUESTO DE LA ACTIVIDAD'!$E48,'EJEMPLO DESGLOSE DE PARTIDAS'!D:D,0)-1,0),\"<CODIGO SUB_CONCEPTO>\" &E48 &\"</CODIGO SUB_CONCEPTO>\"))","v":""},null,null,null,null,{"$f":"IF(G$66,G48/G$66,0)","v":0}]
["<Sub_Sub_Concepto>","<Sub_Concepto>Alquileres y arrendamientos</Sub_Concepto>",{"$f":"IF(AND(ISERROR(FIND(\"<Sub_Concepto>\",A49)),ISERROR(FIND(\"<PARTIDA>\",A49))),\"\",IFERROR(OFFSET('EJEMPLO DESGLOSE DE PARTIDAS'!$A$1,MATCH('PRESUPUESTO DE LA ACTIVIDAD'!$E49,'EJEMPLO DESGLOSE DE PARTIDAS'!D:D,0)-1,0),\"<CODIGO SUB_CONCEPTO>\" &E49 &\"</CODIGO SUB_CONCEPTO>\"))","v":""},null,null,null,null,{"$f":"IF(G$66,G49/G$66,0)","v":0}]
["<Sub_Sub_Concepto>","<Sub_Concepto>Alquileres y arrendamientos</Sub_Concepto>",{"$f":"IF(AND(ISERROR(FIND(\"<Sub_Concepto>\",A50)),ISERROR(FIND(\"<PARTIDA>\",A50))),\"\",IFERROR(OFFSET('EJEMPLO DESGLOSE DE PARTIDAS'!$A$1,MATCH('PRESUPUESTO DE LA ACTIVIDAD'!$E50,'EJEMPLO DESGLOSE DE PARTIDAS'!D:D,0)-1,0),\"<CODIGO SUB_CONCEPTO>\" &E50 &\"</CODIGO SUB_CONCEPTO>\"))","v":""},null,null,null,null,{"$f":"IF(G$66,G50/G$66,0)","v":0}]
["<Fin_Sub_Sub_Conceptos><Sub_Concepto>Publicaciones y actividades de comunicación</Sub_Concepto><NoSuprimir><NoInsertar>",null,{"$f":"IF(AND(ISERROR(FIND(\"<Sub_Concepto>\",A51)),ISERROR(FIND(\"<PARTIDA>\",A51))),\"\",IFERROR(OFFSET('EJEMPLO DESGLOSE DE PARTIDAS'!$A$1,MATCH('PRESUPUESTO DE LA ACTIVIDAD'!$E51,'EJEMPLO DESGLOSE DE PARTIDAS'!D:D,0)-1,0),\"<CODIGO SUB_CONCEPTO>\" &E51 &\"</CODIGO SUB_CONCEPTO>\"))","v":"<CODIGO SUB_CONCEPTO>7</CODIGO SUB_CONCEPTO>"},null,"Publicaciones y actividades de comunicación",null,{"$f":"SUM(G52:G54)","v":0},{"$f":"IF(G$66,G51/G$66,0)","v":0}]
["<Sub_Sub_Concepto><NoSuprimir>","<Sub_Concepto>Publicaciones y actividades de comunicación</Sub_Concepto>",{"$f":"IF(AND(ISERROR(FIND(\"<Sub_Concepto>\",A52)),ISERROR(FIND(\"<PARTIDA>\",A52))),\"\",IFERROR(OFFSET('EJEMPLO DESGLOSE DE PARTIDAS'!$A$1,MATCH('PRESUPUESTO DE LA ACTIVIDAD'!$E52,'EJEMPLO DESGLOSE DE PARTIDAS'!D:D,0)-1,0),\"<CODIGO SUB_CONCEPTO>\" &E52 &\"</CODIGO SUB_CONCEPTO>\"))","v":""},null,null,null,null,{"$f":"IF(G$66,G52/G$66,0)","v":0}]
["<Sub_Sub_Concepto><NoSuprimir>","<Sub_Concepto>Publicaciones y actividades de comunicación</Sub_Concepto>",{"$f":"IF(AND(ISERROR(FIND(\"<Sub_Concepto>\",A53)),ISERROR(FIND(\"<PARTIDA>\",A53))),\"\",IFERROR(OFFSET('EJEMPLO DESGLOSE DE PARTIDAS'!$A$1,MATCH('PRESUPUESTO DE LA ACTIVIDAD'!$E53,'EJEMPLO DESGLOSE DE PARTIDAS'!D:D,0)-1,0),\"<CODIGO SUB_CONCEPTO>\" &E53 &\"</CODIGO SUB_CONCEPTO>\"))","v":""},null,null,null,null,{"$f":"IF(G$66,G53/G$66,0)","v":0}]
["<Sub_Sub_Concepto><NoSuprimir>","<Sub_Concepto>Publicaciones y actividades de comunicación</Sub_Concepto>",{"$f":"IF(AND(ISERROR(FIND(\"<Sub_Concepto>\",A54)),ISERROR(FIND(\"<PARTIDA>\",A54))),\"\",IFERROR(OFFSET('EJEMPLO DESGLOSE DE PARTIDAS'!$A$1,MATCH('PRESUPUESTO DE LA ACTIVIDAD'!$E54,'EJEMPLO DESGLOSE DE PARTIDAS'!D:D,0)-1,0),\"<CODIGO SUB_CONCEPTO>\" &E54 &\"</CODIGO SUB_CONCEPTO>\"))","v":""},null,null,null,null,{"$f":"IF(G$66,G54/G$66,0)","v":0}]
["<Fin_Sub_Sub_Conceptos><Sub_Concepto>Viajes y dietas</Sub_Concepto><NoSuprimir><NoInsertar>",null,{"$f":"IF(AND(ISERROR(FIND(\"<Sub_Concepto>\",A55)),ISERROR(FIND(\"<PARTIDA>\",A55))),\"\",IFERROR(OFFSET('EJEMPLO DESGLOSE DE PARTIDAS'!$A$1,MATCH('PRESUPUESTO DE LA ACTIVIDAD'!$E55,'EJEMPLO DESGLOSE DE PARTIDAS'!D:D,0)-1,0),\"<CODIGO SUB_CONCEPTO>\" &E55 &\"</CODIGO SUB_CONCEPTO>\"))","v":"<CODIGO SUB_CONCEPTO>11</CODIGO SUB_CONCEPTO>"},null,"Viajes y dietas",null,{"$f":"SUM(G56:G59)","v":0},{"$f":"IF(G$66,G55/G$66,0)","v":0}]
["<Sub_Sub_Concepto><NoSuprimir>","<Sub_Concepto>Viajes y dietas</Sub_Concepto>",{"$f":"IF(AND(ISERROR(FIND(\"<Sub_Concepto>\",A56)),ISERROR(FIND(\"<PARTIDA>\",A56))),\"\",IFERROR(OFFSET('EJEMPLO DESGLOSE DE PARTIDAS'!$A$1,MATCH('PRESUPUESTO DE LA ACTIVIDAD'!$E56,'EJEMPLO DESGLOSE DE PARTIDAS'!D:D,0)-1,0),\"<CODIGO SUB_CONCEPTO>\" &E56 &\"</CODIGO SUB_CONCEPTO>\"))","v":""},null,null,null,null,{"$f":"IF(G$66,G56/G$66,0)","v":0}]
["<Sub_Sub_Concepto><NoSuprimir>","<Sub_Concepto>Viajes y dietas</Sub_Concepto>",{"$f":"IF(AND(ISERROR(FIND(\"<Sub_Concepto>\",A57)),ISERROR(FIND(\"<PARTIDA>\",A57))),\"\",IFERROR(OFFSET('EJEMPLO DESGLOSE DE PARTIDAS'!$A$1,MATCH('PRESUPUESTO DE LA ACTIVIDAD'!$E57,'EJEMPLO DESGLOSE DE PARTIDAS'!D:D,0)-1,0),\"<CODIGO SUB_CONCEPTO>\" &E57 &\"</CODIGO SUB_CONCEPTO>\"))","v":""},null,null,null,null,{"$f":"IF(G$66,G57/G$66,0)","v":0}]
["<Sub_Sub_Concepto><NoSuprimir>","<Sub_Concepto>Viajes y dietas</Sub_Concepto>",{"$f":"IF(AND(ISERROR(FIND(\"<Sub_Concepto>\",A58)),ISERROR(FIND(\"<PARTIDA>\",A58))),\"\",IFERROR(OFFSET('EJEMPLO DESGLOSE DE PARTIDAS'!$A$1,MATCH('PRESUPUESTO DE LA ACTIVIDAD'!$E58,'EJEMPLO DESGLOSE DE PARTIDAS'!D:D,0)-1,0),\"<CODIGO SUB_CONCEPTO>\" &E58 &\"</CODIGO SUB_CONCEPTO>\"))","v":""},null,null,null,null,{"$f":"IF(G$66,G58/G$66,0)","v":0}]
["<Sub_Sub_Concepto>","<Sub_Concepto>Viajes y dietas</Sub_Concepto>",{"$f":"IF(AND(ISERROR(FIND(\"<Sub_Concepto>\",A59)),ISERROR(FIND(\"<PARTIDA>\",A59))),\"\",IFERROR(OFFSET('EJEMPLO DESGLOSE DE PARTIDAS'!$A$1,MATCH('PRESUPUESTO DE LA ACTIVIDAD'!$E59,'EJEMPLO DESGLOSE DE PARTIDAS'!D:D,0)-1,0),\"<CODIGO SUB_CONCEPTO>\" &E59 &\"</CODIGO SUB_CONCEPTO>\"))","v":""},null,null,null,null,0]
["<Fin_Sub_Sub_Conceptos><Sub_Concepto>Otros gastos</Sub_Concepto><NoSuprimir><NoInsertar>",null,{"$f":"IF(AND(ISERROR(FIND(\"<Sub_Concepto>\",A60)),ISERROR(FIND(\"<PARTIDA>\",A60))),\"\",IFERROR(OFFSET('EJEMPLO DESGLOSE DE PARTIDAS'!$A$1,MATCH('PRESUPUESTO DE LA ACTIVIDAD'!$E60,'EJEMPLO DESGLOSE DE PARTIDAS'!D:D,0)-1,0),\"<CODIGO SUB_CONCEPTO>\" &E60 &\"</CODIGO SUB_CONCEPTO>\"))","v":"<CODIGO SUB_CONCEPTO>9</CODIGO SUB_CONCEPTO>"},null,"Otros gastos directos (detallar insertando filas)",null,{"$f":"SUM(G61:G65)","v":0},0]
["<Sub_Sub_Concepto><NoSuprimir>","<Sub_Concepto>Otros gastos</Sub_Concepto>",{"$f":"IF(AND(ISERROR(FIND(\"<Sub_Concepto>\",A61)),ISERROR(FIND(\"<PARTIDA>\",A61))),\"\",IFERROR(OFFSET('EJEMPLO DESGLOSE DE PARTIDAS'!$A$1,MATCH('PRESUPUESTO DE LA ACTIVIDAD'!$E61,'EJEMPLO DESGLOSE DE PARTIDAS'!D:D,0)-1,0),\"<CODIGO SUB_CONCEPTO>\" &E61 &\"</CODIGO SUB_CONCEPTO>\"))","v":""},null,null,null,null,0]
["<Sub_Sub_Concepto>","<Sub_Concepto>Otros gastos</Sub_Concepto>",{"$f":"IF(AND(ISERROR(FIND(\"<Sub_Concepto>\",A62)),ISERROR(FIND(\"<PARTIDA>\",A62))),\"\",IFERROR(OFFSET('EJEMPLO DESGLOSE DE PARTIDAS'!$A$1,MATCH('PRESUPUESTO DE LA ACTIVIDAD'!$E62,'EJEMPLO DESGLOSE DE PARTIDAS'!D:D,0)-1,0),\"<CODIGO SUB_CONCEPTO>\" &E62 &\"</CODIGO SUB_CONCEPTO>\"))","v":""},null,null,null,null,0]
["<Sub_Sub_Concepto>","<Sub_Concepto>Otros gastos</Sub_Concepto>",{"$f":"IF(AND(ISERROR(FIND(\"<Sub_Concepto>\",A63)),ISERROR(FIND(\"<PARTIDA>\",A63))),\"\",IFERROR(OFFSET('EJEMPLO DESGLOSE DE PARTIDAS'!$A$1,MATCH('PRESUPUESTO DE LA ACTIVIDAD'!$E63,'EJEMPLO DESGLOSE DE PARTIDAS'!D:D,0)-1,0),\"<CODIGO SUB_CONCEPTO>\" &E63 &\"</CODIGO SUB_CONCEPTO>\"))","v":""},null,null,null,null,0]
["<Sub_Sub_Concepto>","<Sub_Concepto>Otros gastos</Sub_Concepto>",{"$f":"IF(AND(ISERROR(FIND(\"<Sub_Concepto>\",A64)),ISERROR(FIND(\"<PARTIDA>\",A64))),\"\",IFERROR(OFFSET('EJEMPLO DESGLOSE DE PARTIDAS'!$A$1,MATCH('PRESUPUESTO DE LA ACTIVIDAD'!$E64,'EJEMPLO DESGLOSE DE PARTIDAS'!D:D,0)-1,0),\"<CODIGO SUB_CONCEPTO>\" &E64 &\"</CODIGO SUB_CONCEPTO>\"))","v":""},null,null,null,null,{"$f":"IF(G$66,G64/G$66,0)","v":0}]
["<Sub_Sub_Concepto>","<Sub_Concepto>Otros gastos</Sub_Concepto>",{"$f":"IF(AND(ISERROR(FIND(\"<Sub_Concepto>\",A65)),ISERROR(FIND(\"<PARTIDA>\",A65))),\"\",IFERROR(OFFSET('EJEMPLO DESGLOSE DE PARTIDAS'!$A$1,MATCH('PRESUPUESTO DE LA ACTIVIDAD'!$E65,'EJEMPLO DESGLOSE DE PARTIDAS'!D:D,0)-1,0),\"<CODIGO SUB_CONCEPTO>\" &E65 &\"</CODIGO SUB_CONCEPTO>\"))","v":""},null,null,null,null,{"$f":"IF(G$66,G65/G$66,0)","v":0}]
["<Fin_Sub_Sub_Conceptos><NoSuprimir><NoInsertar>",null,{"$f":"IF(AND(ISERROR(FIND(\"<Sub_Concepto>\",A66)),ISERROR(FIND(\"<PARTIDA>\",A66))),\"\",IFERROR(OFFSET('EJEMPLO DESGLOSE DE PARTIDAS'!$A$1,MATCH('PRESUPUESTO DE LA ACTIVIDAD'!$E66,'EJEMPLO DESGLOSE DE PARTIDAS'!D:D,0)-1,0),\"<CODIGO SUB_CONCEPTO>\" &E66 &\"</CODIGO SUB_CONCEPTO>\"))","v":""},null,"TOTAL GASTOS DIRECTOS",null,{"$f":"SUMIF(A32:A66,\"*<Sub_Concepto>*\",G32:G66)","v":0},1]
[null,null,{"$f":"IF(AND(ISERROR(FIND(\"<Sub_Concepto>\",A67)),ISERROR(FIND(\"<PARTIDA>\",A67))),\"\",IFERROR(OFFSET('EJEMPLO DESGLOSE DE PARTIDAS'!$A$1,MATCH('PRESUPUESTO DE LA ACTIVIDAD'!$E67,'EJEMPLO DESGLOSE DE PARTIDAS'!D:D,0)-1,0),\"<CODIGO SUB_CONCEPTO>\" &E67 &\"</CODIGO SUB_CONCEPTO>\"))","v":""}]
["<PARTIDA>GASTOS INDIRECTOS</PARTIDA><NoSuprimir><NoInsertar>",null,{"$f":"IF(AND(ISERROR(FIND(\"<Sub_Concepto>\",A68)),ISERROR(FIND(\"<PARTIDA>\",A68))),\"\",IFERROR(OFFSET('EJEMPLO DESGLOSE DE PARTIDAS'!$A$1,MATCH('PRESUPUESTO DE LA ACTIVIDAD'!$E68,'EJEMPLO DESGLOSE DE PARTIDAS'!D:D,0)-1,0),\"<CODIGO SUB_CONCEPTO>\" &E68 &\"</CODIGO SUB_CONCEPTO>\"))","v":"<CODIGO CONCEPTO>3</CODIGO CONCEPTO>"},null,"GASTOS INDIRECTOS (detallar)",null,"CUANTÍA","PORCENTAJE"]
[{"$f":"\"<Fin_Sub_Sub_Conceptos><Sub_Concepto>\" & E69 & \"</Sub_Concepto><NoSuprimir>\"","v":"<Fin_Sub_Sub_Conceptos><Sub_Concepto></Sub_Concepto><NoSuprimir>"},null,{"$f":"IF(AND(ISERROR(FIND(\"<Sub_Concepto>\",A69)),ISERROR(FIND(\"<PARTIDA>\",A69))),\"\",IFERROR(OFFSET('EJEMPLO DESGLOSE DE PARTIDAS'!$A$1,MATCH('PRESUPUESTO DE LA ACTIVIDAD'!$E69,'EJEMPLO DESGLOSE DE PARTIDAS'!D:D,0)-1,0),\"<CODIGO SUB_CONCEPTO>\" &E69 &\"</CODIGO SUB_CONCEPTO>\"))","v":"<CODIGO SUB_CONCEPTO></CODIGO SUB_CONCEPTO>"},null,null,null,null,{"$f":"IF(G$74,G69/G$74,0)","v":0}]
["<Fin_Sub_Sub_Conceptos><Sub_Concepto></Sub_Concepto><NoSuprimir>",null,{"$f":"IF(AND(ISERROR(FIND(\"<Sub_Concepto>\",A70)),ISERROR(FIND(\"<PARTIDA>\",A70))),\"\",IFERROR(OFFSET('EJEMPLO DESGLOSE DE PARTIDAS'!$A$1,MATCH('PRESUPUESTO DE LA ACTIVIDAD'!$E70,'EJEMPLO DESGLOSE DE PARTIDAS'!D:D,0)-1,0),\"<CODIGO SUB_CONCEPTO>\" &E70 &\"</CODIGO SUB_CONCEPTO>\"))","v":"<CODIGO SUB_CONCEPTO></CODIGO SUB_CONCEPTO>"},null,null,null,null,{"$f":"IF(G$74,G70/G$74,0)","v":0}]
["<Fin_Sub_Sub_Conceptos><Sub_Concepto></Sub_Concepto><NoSuprimir>",null,{"$f":"IF(AND(ISERROR(FIND(\"<Sub_Concepto>\",A71)),ISERROR(FIND(\"<PARTIDA>\",A71))),\"\",IFERROR(OFFSET('EJEMPLO DESGLOSE DE PARTIDAS'!$A$1,MATCH('PRESUPUESTO DE LA ACTIVIDAD'!$E71,'EJEMPLO DESGLOSE DE PARTIDAS'!D:D,0)-1,0),\"<CODIGO SUB_CONCEPTO>\" &E71 &\"</CODIGO SUB_CONCEPTO>\"))","v":"<CODIGO SUB_CONCEPTO></CODIGO SUB_CONCEPTO>"},null,null,null,null,{"$f":"IF(G$74,G71/G$74,0)","v":0}]
[{"$f":"\"<Fin_Sub_Sub_Conceptos><Sub_Concepto>\" &D72 & \"</Sub_Concepto>\"","v":"<Fin_Sub_Sub_Conceptos><Sub_Concepto></Sub_Concepto>"},null,{"$f":"IF(AND(ISERROR(FIND(\"<Sub_Concepto>\",A72)),ISERROR(FIND(\"<PARTIDA>\",A72))),\"\",IFERROR(OFFSET('EJEMPLO DESGLOSE DE PARTIDAS'!$A$1,MATCH('PRESUPUESTO DE LA ACTIVIDAD'!$E72,'EJEMPLO DESGLOSE DE PARTIDAS'!D:D,0)-1,0),\"<CODIGO SUB_CONCEPTO>\" &E72 &\"</CODIGO SUB_CONCEPTO>\"))","v":"<CODIGO SUB_CONCEPTO></CODIGO SUB_CONCEPTO>"},null,null,null,null,{"$f":"IF(G$74,G72/G$74,0)","v":0}]
[{"$f":"\"<Fin_Sub_Sub_Conceptos><Sub_Concepto>\" &D73 & \"</Sub_Concepto>\"","v":"<Fin_Sub_Sub_Conceptos><Sub_Concepto></Sub_Concepto>"},null,{"$f":"IF(AND(ISERROR(FIND(\"<Sub_Concepto>\",A73)),ISERROR(FIND(\"<PARTIDA>\",A73))),\"\",IFERROR(OFFSET('EJEMPLO DESGLOSE DE PARTIDAS'!$A$1,MATCH('PRESUPUESTO DE LA ACTIVIDAD'!$E73,'EJEMPLO DESGLOSE DE PARTIDAS'!D:D,0)-1,0),\"<CODIGO SUB_CONCEPTO>\"&\"</CODIGO SUB_CONCEPTO>\"))","v":"<CODIGO SUB_CONCEPTO></CODIGO SUB_CONCEPTO>"},null,null,null,null,{"$f":"IF(G$74,G73/G$74,0)","v":0}]
["<Fin_Sub_Sub_Conceptos><NoSuprimir><NoInsertar>",null,{"$f":"IF(AND(ISERROR(FIND(\"<Sub_Concepto>\",A74)),ISERROR(FIND(\"<PARTIDA>\",A74))),\"\",IFERROR(OFFSET('EJEMPLO DESGLOSE DE PARTIDAS'!$A$1,MATCH('PRESUPUESTO DE LA ACTIVIDAD'!$E74,'EJEMPLO DESGLOSE DE PARTIDAS'!D:D,0)-1,0),\"<CODIGO SUB_CONCEPTO>\" &E74 &\"</CODIGO SUB_CONCEPTO>\"))","v":""},null,"TOTAL GASTOS INDIRECTOS",null,{"$f":"SUMIF(A69:A74,\"*<Sub_Concepto>*\",G69:G74)","v":0},1]
[null,null,{"$f":"IF(AND(ISERROR(FIND(\"<Sub_Concepto>\",A75)),ISERROR(FIND(\"<PARTIDA>\",A75))),\"\",IFERROR(OFFSET('EJEMPLO DESGLOSE DE PARTIDAS'!$A$1,MATCH('PRESUPUESTO DE LA ACTIVIDAD'!$E75,'EJEMPLO DESGLOSE DE PARTIDAS'!D:D,0)-1,0),\"<CODIGO SUB_CONCEPTO>\" &E75 &\"</CODIGO SUB_CONCEPTO>\"))","v":""}]
["<NoSuprimir><NoInsertar>",null,{"$f":"IF(AND(ISERROR(FIND(\"<Sub_Concepto>\",A76)),ISERROR(FIND(\"<PARTIDA>\",A76))),\"\",IFERROR(OFFSET('EJEMPLO DESGLOSE DE PARTIDAS'!$A$1,MATCH('PRESUPUESTO DE LA ACTIVIDAD'!$E76,'EJEMPLO DESGLOSE DE PARTIDAS'!D:D,0)-1,0),\"<CODIGO SUB_CONCEPTO>\" &E76 &\"</CODIGO SUB_CONCEPTO>\"))","v":""},null,"TOTAL GASTOS ",null,{"$f":"(G66+G74)","v":0}]
["<NoSuprimir><NoInsertar>",null,{"$f":"IF(AND(ISERROR(FIND(\"<Sub_Concepto>\",A77)),ISERROR(FIND(\"<PARTIDA>\",A77))),\"\",IFERROR(OFFSET('EJEMPLO DESGLOSE DE PARTIDAS'!$A$1,MATCH('PRESUPUESTO DE LA ACTIVIDAD'!$E77,'EJEMPLO DESGLOSE DE PARTIDAS'!D:D,0)-1,0),\"<CODIGO SUB_CONCEPTO>\" &E77 &\"</CODIGO SUB_CONCEPTO>\"))","v":""}]
["<NoSuprimir><NoInsertar>",null,{"$f":"IF(AND(ISERROR(FIND(\"<Sub_Concepto>\",A78)),ISERROR(FIND(\"<PARTIDA>\",A78))),\"\",IFERROR(OFFSET('EJEMPLO DESGLOSE DE PARTIDAS'!$A$1,MATCH('PRESUPUESTO DE LA ACTIVIDAD'!$E78,'EJEMPLO DESGLOSE DE PARTIDAS'!D:D,0)-1,0),\"<CODIGO SUB_CONCEPTO>\" &E78 &\"</CODIGO SUB_CONCEPTO>\"))","v":""}]
["<NoSuprimir><NoInsertar>",null,{"$f":"IF(AND(ISERROR(FIND(\"<Sub_Concepto>\",A79)),ISERROR(FIND(\"<PARTIDA>\",A79))),\"\",IFERROR(OFFSET('EJEMPLO DESGLOSE DE PARTIDAS'!$A$1,MATCH('PRESUPUESTO DE LA ACTIVIDAD'!$E79,'EJEMPLO DESGLOSE DE PARTIDAS'!D:D,0)-1,0),\"<CODIGO SUB_CONCEPTO>\" &E79 &\"</CODIGO SUB_CONCEPTO>\"))","v":""},null,"TOTAL INGRESOS",null,{"$f":"G28","v":0}]
["<NoSuprimir><NoInsertar>",null,{"$f":"IF(AND(ISERROR(FIND(\"<Sub_Concepto>\",A80)),ISERROR(FIND(\"<PARTIDA>\",A80))),\"\",IFERROR(OFFSET('EJEMPLO DESGLOSE DE PARTIDAS'!$A$1,MATCH('PRESUPUESTO DE LA ACTIVIDAD'!$E80,'EJEMPLO DESGLOSE DE PARTIDAS'!D:D,0)-1,0),\"<CODIGO SUB_CONCEPTO>\" &E80 &\"</CODIGO SUB_CONCEPTO>\"))","v":""},null,"TOTAL GASTOS ",null,{"$f":"G76","v":0}]
["<NoSuprimir><NoInsertar>",null,{"$f":"IF(AND(ISERROR(FIND(\"<Sub_Concepto>\",A81)),ISERROR(FIND(\"<PARTIDA>\",A81))),\"\",IFERROR(OFFSET('EJEMPLO DESGLOSE DE PARTIDAS'!$A$1,MATCH('PRESUPUESTO DE LA ACTIVIDAD'!$E81,'EJEMPLO DESGLOSE DE PARTIDAS'!D:D,0)-1,0),\"<CODIGO SUB_CONCEPTO>\" &E81 &\"</CODIGO SUB_CONCEPTO>\"))","v":""},null,"       - TOTAL GASTOS DIRECTOS",null,{"$f":"G66","v":0}]
["<NoSuprimir><NoInsertar>",null,{"$f":"IF(AND(ISERROR(FIND(\"<Sub_Concepto>\",A82)),ISERROR(FIND(\"<PARTIDA>\",A82))),\"\",IFERROR(OFFSET('EJEMPLO DESGLOSE DE PARTIDAS'!$A$1,MATCH('PRESUPUESTO DE LA ACTIVIDAD'!$E82,'EJEMPLO DESGLOSE DE PARTIDAS'!D:D,0)-1,0),\"<CODIGO SUB_CONCEPTO>\" &E82 &\"</CODIGO SUB_CONCEPTO>\"))","v":""},null,"       - TOTAL GASTOS INDIRECTOS",null,{"$f":"G74","v":0}]
["<NoSuprimir><NoInsertar>",null,{"$f":"IF(AND(ISERROR(FIND(\"<Sub_Concepto>\",A83)),ISERROR(FIND(\"<PARTIDA>\",A83))),\"\",IFERROR(OFFSET('EJEMPLO DESGLOSE DE PARTIDAS'!$A$1,MATCH('PRESUPUESTO DE LA ACTIVIDAD'!$E83,'EJEMPLO DESGLOSE DE PARTIDAS'!D:D,0)-1,0),\"<CODIGO SUB_CONCEPTO>\" &E83 &\"</CODIGO SUB_CONCEPTO>\"))","v":""},null,"DIFERENCIA INGRESOS Y GASTOS",null,{"$f":"G79-G80","v":0}]
["<NoSuprimir><NoInsertar>"]
[]
["<NoSuprimir><NoInsertar>",null,null,null,"Este modelo, una vez cumplimentado, se debe aportar como documento adjunto en la solicitud electrónica de la subvención que vaya a solicitar."]

{"sheet":"EJEMPLO DESGLOSE DE PARTIDAS","index":3,"n_rows":94,"n_cols":13,"rows_kept":94,"cut":false,"hidden":false,"merged":[[13,3,13,4],[71,3,71,4],[30,3,30,4],[25,3,25,4],[26,3,26,4],[24,3,24,4],[58,3,58,4],[68,3,68,4],[70,3,70,4],[31,3,31,4],[36,3,36,4],[39,3,39,4],[42,3,42,4],[46,3,46,4],[50,3,50,4],[51,3,51,4],[0,4,3,6],[0,7,1,7],[2,7,3,7],[4,4,4,6],[21,3,21,4],[14,3,14,4],[9,3,9,6],[10,3,10,4],[11,3,11,4],[15,3,15,4],[16,3,16,4],[19,3,19,4],[20,3,20,4],[17,3,17,4],[18,3,18,4],[12,3,12,4],[22,3,22,4],[23,3,23,4],[56,3,56,4],[32,3,32,4],[33,3,33,4],[35,3,35,4],[37,3,37,4],[38,3,38,4],[40,3,40,4],[41,3,41,4],[44,3,44,4],[45,3,45,4],[47,3,47,4],[49,3,49,4],[27,3,27,4],[29,3,29,6],[76,3,76,4],[77,3,77,4],[78,3,78,4],[52,3,52,4],[54,3,54,4],[55,3,55,4],[74,3,74,4],[61,3,61,4],[62,3,62,4],[63,3,63,4],[64,3,64,4],[66,3,66,4],[67,3,67,4],[69,3,69,4],[73,3,73,4],[60,3,60,4],[79,3,79,4],[80,3,80,4],[81,3,81,4],[82,3,82,4],[83,3,83,4],[92,3,92,4],[93,3,93,4],[94,3,94,4],[96,3,96,7],[84,3,84,4],[86,3,86,4],[89,3,89,4],[90,3,90,4],[91,3,91,4],[65,3,65,4],[72,3,72,4],[34,3,34,4],[43,3,43,4],[53,3,53,4],[59,3,59,4],[48,3,48,4]]}
[null,null,null,null,"       EJEMPLO DE DESGLOSE DE PARTIDAS\n       PRESUPUESTO DE LA ACTIVIDAD",null,null,"HACER CLIC PARA INSERTAR FILA: ",null,null,"LÍNEAS SUBVENCIONALES","VIAJES Y DIETAS","G. INDIRECTOS"]
[null,null,null,null,null,null,null,null,null,null,"1) Actividades de intervención social con personas, familias, grupos y comunidades.",0.05,0.1]
[null,null,null,null,null,null,null,"HACER CLIC PARA SUPRIMIR FILA:",null,null,"2) Actividades para el fortalecimiento de la acción voluntaria y la participación asociativa en la intervención social.",0.1,0.15]
[null,null,null,null,null,null,null,null,null,null,"3) Actividades de gestión del conocimiento para la intervención social.",0.1,0.1]
[null,null,null,null,"IR A CUMPLIMENTACIÓN DE PRESUPUESTO"]
[]
[]
[]
[]
[]
["<CODIGO CONCEPTO>1</CODIGO CONCEPTO>",null,null,"INGRESOS DE LA ACTIVIDAD",null,"CUANTÍA","PORCENTAJE"]
["<CODIGO SUB_CONCEPTO>1</CODIGO SUB_CONCEPTO>",null,null,"Aportación de la entidad solicitante",null,0,0]
[null,null,null,"Aportación de la entidad solicitante",null,null,0]
["<CODIGO SUB_CONCEPTO>3</CODIGO SUB_CONCEPTO>",null,null,"Subvenciones  (detallar a continuación) NO INCLUIR LA SOLICITADA\nOtras subvenciones (incluyento aquellas que se encuentran solicitadas y pendientes de resolver)  ",null,0,0]
[null,null,null,"AYUNTAMIENTO DE X",null,null,0]
[null,null,null,"AYUNTAMIENTO DE Y",null,null,0]
[null,null,null,"DIPUTACIÓN FORAL DE X",null,null,0]
[null,null,null,"GOBIERNO VASCO- DEPARTAMENTO X",null,null,0]
[null,null,null,"GOBIERNO VASCO- DEPARTAMENTO Y",null,null,0]
["<CODIGO SUB_CONCEPTO>8</CODIGO SUB_CONCEPTO>",null,null,"Otros ingresos (detallar a continuación)","Otros ingresos (detallar a continuación)",0,0]
[null,null,null,"DONACIONES",null,null,0]
[null,null,null,"AYUDAS DEL FUNDACIÓN X",null,null,0]
[null,null,null,"INSCRIPCIONES A LA JORNADA ",null,null,0]
[{"$f":"\"<CODIGO SUB_CONCEPTO>SC</CODIGO SUB_CONCEPTO>\"","v":"<CODIGO SUB_CONCEPTO>SC</CODIGO SUB_CONCEPTO>"},null,null,"","Otros ingresos (detallar a continuación)",0,0]
[null,null,null,null,null,null,0]
[null,null,null,null,null,null,0]
[null,null,null,null,null,null,0]
[null,null,null,"TOTAL INGRESOS",null,0,1]
[]
[]
["<CODIGO CONCEPTO>2</CODIGO CONCEPTO>",null,null,"GASTOS DIRECTOS DE LA ACTIVIDAD",null,"CUANTÍA","PORCENTAJE"]
["<CODIGO SUB_CONCEPTO>4</CODIGO SUB_CONCEPTO>",null,null,"Personal (nóminas y gastos de seguridad social)",null,{"$f":"SUM(F34:F34)","v":0},0]
[null,null,null,"SUELDOS Y SALARIOS",null,null,0]
[null,null,null,"S.S A CARGO DE LA EMPRESA",null,null,0]
[null,null,null,null,null,null,0]
["<CODIGO SUB_CONCEPTO>2</CODIGO SUB_CONCEPTO>",null,null,"Servicios de profesionales independientes",null,{"$f":"SUM(F39:F39)","v":0},0]
[null,null,null,"COORDINACIÓN",null,null,0]
[null,null,null,"PONENTES",null,null,0]
[null,null,null,"TECNICO DE SONIDO",null,null,0]
[null,null,null,"ENVÍOS Y DISTRIBUCIÓN (CORREO POSTAL, PAQUETERÍA, SMS...)",null,null,0]
[null,null,null,"SERVICIOS DE TRADUCCION",null,null,0]
[null,null,null,"SERVICIOS INFORMATICOS",null,null,0]
[null,null,null,"DIRECCION PROYECTO",null,null,0]
[null,null,null,null,null,null,0]
["<CODIGO SUB_CONCEPTO>5</CODIGO SUB_CONCEPTO>",null,null,"Materiales",null,{"$f":"SUM(F46:F46)","v":0},0]
[null,null,null,"MATERIAL DIDÁCTICO",null,null,0]
[null,null,null,"MATERIAL DE OFICINA",null,null,0]
[null,null,null,"MATERIALES DE TALLER",null,null,0]
[null,null,null,null,null,null,0]
["<CODIGO SUB_CONCEPTO>10</CODIGO SUB_CONCEPTO>",null,null,"Alquileres y arrendamientos",null,{"$f":"SUM(F51:F51)","v":0},0]
[null,null,null,"ALQUILER SALA PALACIO DE CONGRESOS ",null,null,0]
[null,null,null,"ALQUILER LOCAL - PABELLON",null,null,0]
[null,null,null,"ALQUILER IMPRESORA - FOTOCOPIADORA",null,null,0]
[]
["<CODIGO SUB_CONCEPTO>7</CODIGO SUB_CONCEPTO>",null,null,"Publicaciones y actividades de comunicación",null,{"$f":"SUM(F59:F59)","v":0},0]
[null,null,null,"PUBLICIDAD EN REDES SOCIAL",null,null,0]
[null,null,null,"PUBLICIDAD EN PRENSA",null,null,0]
[null,null,null,"IMPRENTA",null,null,0]
[null,null,null,"TRIPTICOS ",null,null,0]
[null,null,null,null,null,null,0]
["<CODIGO SUB_CONCEPTO>11</CODIGO SUB_CONCEPTO>",null,null,"Viajes y dietas",null,{"$f":"SUM(F64:F64)","v":0},0]
[null,null,null,"APARCAMIENTO",null,null,0]
[null,null,null,"GASOLINA",null,null,0]
[null,null,null,"DIETAS",null,null,0]
[null,null,null,"TRANSPORTES",null,null,0]
[null,null,null,null,null,null,0]
["<CODIGO SUB_CONCEPTO>9</CODIGO SUB_CONCEPTO>",null,null,"Otros gastos directos (detallar insertando filas)",null,0,0]
[null,null,null,"PLATAFORMA VIDEOLLAMADAS",null,null,0]
[null,null,null,"VESTUARIO Y MAT. DE SEGURIDAD",null,null,0]
[null,null,null,"SEGUROS DE RESPONSABILIDAD CIVIL Y ACCIDENTES",null,null,0]
[null,null,null,"TELEFONÍA E INTERNET",null,null,0]
[null,null,null,"GASTOS GENERALES DEL CENTRO (Agua, Electricidad, Gas…)",null,null,0]
[null,null,null,"GASTOS DE LIMPIEZA (Personal, material de limpieza…)",null,null,0]
[null,null,null,null,null,null,0]
[null,null,null,"TOTAL GASTOS DIRECTOS",null,0,1]
[]
["<CODIGO CONCEPTO>3</CODIGO CONCEPTO>",null,null,"GASTOS INDIRECTOS (detallar)",null,"CUANTÍA","PORCENTAJE"]
["<CODIGO SUB_CONCEPTO></CODIGO SUB_CONCEPTO>",null,null,"PERSONAL LIGADO INDIRECTAMENTE",null,null,0]
["<CODIGO SUB_CONCEPTO></CODIGO SUB_CONCEPTO>",null,null,"ASESORIA",null,null,0]
["<CODIGO SUB_CONCEPTO></CODIGO SUB_CONCEPTO>",null,null,"ALQUILER DE OFICINA",null,null,0]
["<CODIGO SUB_CONCEPTO></CODIGO SUB_CONCEPTO>",null,null,"SUMINISTROS",null,null,0]
["<CODIGO SUB_CONCEPTO></CODIGO SUB_CONCEPTO>",null,null,"MATERIAL ADMINISTRATIVO",null,null,0]
["<CODIGO SUB_CONCEPTO></CODIGO SUB_CONCEPTO>",null,null,"DERIBADOS AL PAGO DE SERVICIOS FINANCIEROS",null,null,0]
[null,null,null,null,null,null,0]
[null,null,null,"TOTAL GASTOS INDIRECTOS",null,0,1]
[]
[null,null,null,"TOTAL GASTOS ",null,0]
[]
[]
[null,null,null,"TOTAL INGRESOS",null,0]
[null,null,null,"TOTAL GASTOS ",null,0]
[null,null,null,"       - TOTAL GASTOS DIRECTOS",null,{"$f":"F75","v":0}]
[null,null,null,"       - TOTAL GASTOS INDIRECTOS",null,0]
[null,null,null,"DIFERENCIA INGRESOS Y GASTOS",null,0]